[Event "*** Titled Tuesday Blitz"]
[Site "Chess.com"]
[Date "2019.04.02"]
[Round "4"]
[White "maestroza"]
[Black "medalja"]
[Result "1-0"]
[WhiteElo "2485"]
[BlackElo "2288"]
[TimeControl "180+2"]
[EndTime "14:48:53 PDT"]
[Termination "maestroza won by resignation"]

1. e4 {[%clk 0:03:01.9]} 1... e5 {[%clk 0:03:00.6]} 2. Nc3 {[%clk 0:03:02.3]}
2... Nf6 {[%clk 0:03:00.3]} 3. Bc4 {[%clk 0:03:03.8]} 3... Nc6 {[%clk
0:03:00.7]} 4. d3 {[%clk 0:03:04.5]} 4... Be7 {[%clk 0:02:52.2]} 5. f4 {[%clk
0:03:05]} 5... d6 {[%clk 0:02:52]} 6. Nf3 {[%clk 0:03:05.9]} 6... Bg4 {[%clk
0:02:47]} 7. h3 {[%clk 0:03:00.4]} 7... Bxf3 {[%clk 0:02:47.4]} 8. Qxf3 {[%clk
0:03:02.3]} 8... Nd4 {[%clk 0:02:48.4]} 9. Qf2 {[%clk 0:02:55]} 9... Nh5 {[%clk
0:02:45.7]} 10. Bxf7+ {[%clk 0:02:20.4]} 10... Kxf7 {[%clk 0:02:35.5]} 11. fxe5+
{[%clk 0:02:21.6]} 11... Ke8 {[%clk 0:02:08.7]} 12. O-O {[%clk 0:01:47.6]} 12...
dxe5 {[%clk 0:01:25.5]} 13. Qf7+ {[%clk 0:01:47.7]} 13... Kd7 {[%clk 0:01:26.6]}
14. Qxh5 {[%clk 0:01:49.3]} 14... Nxc2 {[%clk 0:01:27.7]} 15. Rb1 {[%clk
0:01:43.9]} 15... Bf6 {[%clk 0:01:28.7]} 16. Nd5 {[%clk 0:01:35.5]} 16... Kc8
{[%clk 0:01:16.1]} 17. Qf5+ {[%clk 0:01:18.5]} 17... Kb8 {[%clk 0:01:05.3]} 18.
Nxf6 {[%clk 0:01:19.2]} 18... gxf6 {[%clk 0:01:06.5]} 19. Qxf6 {[%clk
0:01:20.3]} 19... a5 {[%clk 0:01:08.4]} 20. Bg5 {[%clk 0:01:16.1]} 20... Qd4+
{[%clk 0:01:03.5]} 21. Kh2 {[%clk 0:01:12.1]} 21... Ka7 {[%clk 0:01:04.3]} 22.
Qf2 {[%clk 0:00:58.8]} 22... Nb4 {[%clk 0:00:55.5]} 23. Be3 {[%clk 0:00:58.9]}
23... c5 {[%clk 0:00:54.5]} 24. Bxd4 {[%clk 0:00:58]} 24... cxd4 {[%clk
0:00:56.4]} 25. Qd2 {[%clk 0:00:52.4]} 25... Rac8 {[%clk 0:00:57]} 26. Rbc1
{[%clk 0:00:52.5]} 26... Rhg8 {[%clk 0:00:56.2]} 27. a3 {[%clk 0:00:51.2]} 27...
Nc6 {[%clk 0:00:56.9]} 28. Rf7 {[%clk 0:00:49.3]} 28... Rg6 {[%clk 0:00:54.5]}
29. Rc5 {[%clk 0:00:46.4]} 29... Kb6 {[%clk 0:00:53]} 30. Qc2 {[%clk 0:00:37.6]}
30... Rcg8 {[%clk 0:00:53.7]} 31. g4 {[%clk 0:00:36.2]} 31... h5 {[%clk
0:00:54.3]} 32. Qc4 {[%clk 0:00:37.2]} 32... Na7 {[%clk 0:00:48.4]} 33. Rcc7
{[%clk 0:00:24.4]} 1-0

[Event "*** Titled Tuesday Blitz"]
[Site "Chess.com"]
[Date "2019.04.02"]
[Round "4"]
[White "WanderingPuppet"]
[Black "Witik"]
[Result "0-1"]
[WhiteElo "2402"]
[BlackElo "2615"]
[TimeControl "180+2"]
[EndTime "14:48:54 PDT"]
[Termination "Witik won by resignation"]

1. e4 {[%clk 0:03:01.9]} 1... c6 {[%clk 0:02:59.9]} 2. Nc3 {[%clk 0:02:59.3]}
2... d5 {[%clk 0:03:01.8]} 3. Nf3 {[%clk 0:03:00.1]} 3... Bg4 {[%clk 0:03:01]}
4. d4 {[%clk 0:02:58.9]} 4... e6 {[%clk 0:03:01.1]} 5. Bd3 {[%clk 0:02:57.6]}
5... Nf6 {[%clk 0:03:00.2]} 6. h3 {[%clk 0:02:50]} 6... Bh5 {[%clk 0:03:00.1]}
7. O-O {[%clk 0:02:29.9]} 7... Be7 {[%clk 0:02:50.3]} 8. Re1 {[%clk 0:02:23]}
8... O-O {[%clk 0:02:47.1]} 9. e5 {[%clk 0:02:04]} 9... Nfd7 {[%clk 0:02:47.2]}
10. Ne2 {[%clk 0:01:58.8]} 10... Bxf3 {[%clk 0:02:46.3]} 11. gxf3 {[%clk
0:02:00.7]} 11... c5 {[%clk 0:02:46.9]} 12. c3 {[%clk 0:02:00.9]} 12... Nc6
{[%clk 0:02:47.4]} 13. Kh1 {[%clk 0:01:49.2]} 13... cxd4 {[%clk 0:02:41.7]} 14.
cxd4 {[%clk 0:01:49.2]} 14... Bg5 {[%clk 0:02:31.2]} 15. f4 {[%clk 0:01:32.6]}
15... Bh6 {[%clk 0:02:29.1]} 16. Rg1 {[%clk 0:01:29.5]} 16... g6 {[%clk
0:02:28.6]} 17. Kh2 {[%clk 0:01:02.8]} 17... Rc8 {[%clk 0:02:28.3]} 18. Be3
{[%clk 0:00:55.3]} 18... f5 {[%clk 0:02:23]} 19. a3 {[%clk 0:00:41]} 19... Qh4
{[%clk 0:02:19.3]} 20. Rg3 {[%clk 0:00:37.6]} 20... Rf7 {[%clk 0:02:11.3]} 21.
Qb3 {[%clk 0:00:31.9]} 21... Nb6 {[%clk 0:02:08.4]} 22. a4 {[%clk 0:00:30]}
22... Na5 {[%clk 0:02:08.9]} 23. Qb5 {[%clk 0:00:30.6]} 23... Nac4 {[%clk
0:02:07.8]} 24. a5 {[%clk 0:00:27.3]} 24... a6 {[%clk 0:02:05.1]} 25. Qb4 {[%clk
0:00:22.8]} 25... Nxe3 {[%clk 0:02:05.1]} 26. fxe3 {[%clk 0:00:24.7]} 26... Nc4
{[%clk 0:02:05.9]} 27. Rc1 {[%clk 0:00:17]} 27... Rfc7 {[%clk 0:02:06.4]} 28. b3
{[%clk 0:00:16.6]} 28... Nxe3 {[%clk 0:02:04.4]} 29. Rxc7 {[%clk 0:00:16.7]}
29... Rxc7 {[%clk 0:02:05.9]} 30. Qd6 {[%clk 0:00:12.9]} 30... Nf1+ {[%clk
0:02:00.5]} 31. Kg2 {[%clk 0:00:13.8]} 31... Nxg3 {[%clk 0:02:02.4]} 32. Qxc7
{[%clk 0:00:11.2]} 32... Nxe2 {[%clk 0:02:02.1]} 33. Qc8+ {[%clk 0:00:10.4]}
33... Kf7 {[%clk 0:02:00.3]} 34. Qd7+ {[%clk 0:00:07.7]} 34... Qe7 {[%clk
0:02:00.4]} 35. Qxe7+ {[%clk 0:00:08.8]} 35... Kxe7 {[%clk 0:02:02.3]} 36. Bxe2
{[%clk 0:00:09.8]} 36... Bxf4 {[%clk 0:02:04.2]} 37. Kf3 {[%clk 0:00:10.5]}
37... Bd2 {[%clk 0:02:05.4]} 38. Bd3 {[%clk 0:00:06.8]} 38... Bxa5 {[%clk
0:02:04.4]} 39. Bc2 {[%clk 0:00:06.6]} 39... Bc3 {[%clk 0:02:01.9]} 40. Ke3
{[%clk 0:00:07.8]} 40... g5 {[%clk 0:02:03.1]} 41. Kd3 {[%clk 0:00:08.6]} 41...
Bb2 {[%clk 0:02:04]} 42. Bd1 {[%clk 0:00:09.4]} 42... a5 {[%clk 0:01:59.1]} 43.
Bh5 {[%clk 0:00:09.3]} 43... b5 {[%clk 0:01:59.7]} 44. Bd1 {[%clk 0:00:07.8]}
44... Kf7 {[%clk 0:01:59.2]} 45. Bh5+ {[%clk 0:00:08.2]} 45... Kf8 {[%clk
0:02:00]} 46. Bd1 {[%clk 0:00:10.1]} 46... Kg7 {[%clk 0:02:00.9]} 47. Bh5 {[%clk
0:00:10.3]} 47... a4 {[%clk 0:02:01.8]} 48. bxa4 {[%clk 0:00:10.4]} 48... bxa4
{[%clk 0:02:02.6]} 49. Bd1 {[%clk 0:00:08.5]} 49... a3 {[%clk 0:02:03.7]} 50.
Bb3 {[%clk 0:00:10.1]} 50... h5 {[%clk 0:02:04.7]} 51. Ke3 {[%clk 0:00:09.9]}
51... Kg6 {[%clk 0:02:03]} 52. Kf3 {[%clk 0:00:10.8]} 52... g4+ {[%clk
0:02:04.2]} 0-1

[Event "*** Titled Tuesday Blitz"]
[Site "Chess.com"]
[Date "2019.04.02"]
[Round "4"]
[White "Mbneu"]
[Black "Aemulus20"]
[Result "0-1"]
[WhiteElo "2306"]
[BlackElo "2506"]
[TimeControl "180+2"]
[EndTime "14:48:58 PDT"]
[Termination "Aemulus20 won by resignation"]

1. d4 {[%clk 0:03:01.9]} 1... Nf6 {[%clk 0:03:00.4]} 2. c4 {[%clk 0:03:01.2]}
2... e6 {[%clk 0:03:01.1]} 3. Nc3 {[%clk 0:03:00.9]} 3... Bb4 {[%clk 0:03:01.7]}
4. Bg5 {[%clk 0:03:02.2]} 4... h6 {[%clk 0:02:45.6]} 5. Bh4 {[%clk 0:03:01.6]}
5... Nc6 {[%clk 0:02:39.4]} 6. e3 {[%clk 0:02:59.4]} 6... g5 {[%clk 0:02:32]} 7.
Bg3 {[%clk 0:02:59.5]} 7... Ne4 {[%clk 0:02:32]} 8. Rc1 {[%clk 0:02:58.9]} 8...
h5 {[%clk 0:02:16.5]} 9. Bd3 {[%clk 0:02:55.8]} 9... Nxc3 {[%clk 0:01:47.4]} 10.
bxc3 {[%clk 0:02:55.8]} 10... Ba3 {[%clk 0:01:48.8]} 11. h4 {[%clk 0:02:33.3]}
11... Bxc1 {[%clk 0:01:44.1]} 12. Qxc1 {[%clk 0:02:35.2]} 12... d6 {[%clk
0:01:16]} 13. hxg5 {[%clk 0:02:33.5]} 13... Qxg5 {[%clk 0:01:16.3]} 14. Nf3
{[%clk 0:02:33.5]} 14... Qa5 {[%clk 0:01:13.3]} 15. Bh4 {[%clk 0:02:23.5]} 15...
Bd7 {[%clk 0:01:03.5]} 16. O-O {[%clk 0:02:22.1]} 16... e5 {[%clk 0:00:41.5]}
17. Nd2 {[%clk 0:02:08]} 17... f5 {[%clk 0:00:28.2]} 18. c5 {[%clk 0:01:41.4]}
18... dxc5 {[%clk 0:00:24.2]} 19. Nc4 {[%clk 0:01:39.1]} 19... Qxa2 {[%clk
0:00:23.5]} 20. d5 {[%clk 0:01:33.9]} 20... Ne7 {[%clk 0:00:19.5]} 21. Nxe5
{[%clk 0:01:30.2]} 21... Qxd5 {[%clk 0:00:18.4]} 22. f4 {[%clk 0:01:27.8]} 22...
Rg8 {[%clk 0:00:19.3]} 23. Rf2 {[%clk 0:01:25.2]} 23... Bc6 {[%clk 0:00:20.4]}
24. Bf1 {[%clk 0:01:10.7]} 24... Ng6 {[%clk 0:00:17.2]} 25. Bc4 {[%clk
0:01:04.8]} 25... Nxh4 {[%clk 0:00:09.5]} 26. Bxd5 {[%clk 0:01:03.6]} 26... Bxd5
{[%clk 0:00:11.4]} 27. Qd1 {[%clk 0:00:57.5]} 27... O-O-O {[%clk 0:00:11.5]} 28.
Qxh5 {[%clk 0:00:54.2]} 28... Nxg2 {[%clk 0:00:12.7]} 29. Qxf5+ {[%clk
0:00:52.8]} 29... Kb8 {[%clk 0:00:14]} 30. Nd7+ {[%clk 0:00:45]} 30... Rxd7
{[%clk 0:00:15.4]} 31. Qxd7 {[%clk 0:00:45.4]} 31... Nxe3+ {[%clk 0:00:14]} 32.
Kh2 {[%clk 0:00:45.7]} 32... Ng4+ {[%clk 0:00:13.8]} 33. Kg1 {[%clk 0:00:43.7]}
33... Nf6+ {[%clk 0:00:11.9]} 0-1

[Event "*** Titled Tuesday Blitz"]
[Site "Chess.com"]
[Date "2019.04.02"]
[Round "4"]
[White "Roenko_Artur"]
[Black "kikoveiga"]
[Result "1-0"]
[WhiteElo "2279"]
[BlackElo "2181"]
[TimeControl "180+2"]
[EndTime "14:49:09 PDT"]
[Termination "Roenko_Artur won by resignation"]

1. e4 {[%clk 0:02:56.3]} 1... e5 {[%clk 0:02:59.9]} 2. Nf3 {[%clk 0:02:57]} 2...
Nc6 {[%clk 0:03:00.6]} 3. d4 {[%clk 0:02:58.3]} 3... exd4 {[%clk 0:03:00.3]} 4.
Nxd4 {[%clk 0:03:00.2]} 4... Bc5 {[%clk 0:03:00.1]} 5. Be3 {[%clk 0:03:00]} 5...
Qf6 {[%clk 0:02:57]} 6. c3 {[%clk 0:03:00.3]} 6... Nge7 {[%clk 0:02:55.3]} 7.
Bc4 {[%clk 0:03:01.8]} 7... O-O {[%clk 0:02:54.6]} 8. O-O {[%clk 0:02:51.8]}
8... Ne5 {[%clk 0:02:54.8]} 9. Be2 {[%clk 0:02:51.8]} 9... d6 {[%clk 0:02:54.3]}
10. f4 {[%clk 0:02:49.9]} 10... N5g6 {[%clk 0:02:47]} 11. Nd2 {[%clk 0:02:45.7]}
11... Re8 {[%clk 0:02:38.3]} 12. Kh1 {[%clk 0:02:41.5]} 12... Nc6 {[%clk
0:02:37]} 13. e5 {[%clk 0:02:04.3]} 13... dxe5 {[%clk 0:02:29.8]} 14. Ne4 {[%clk
0:02:04.4]} 14... Qh4 {[%clk 0:02:19.8]} 15. Nf3 {[%clk 0:01:58.3]} 15... Qh6
{[%clk 0:02:14.9]} 16. Nxc5 {[%clk 0:01:43.9]} 16... exf4 {[%clk 0:02:09.9]} 17.
Bf2 {[%clk 0:01:44.5]} 17... Bg4 {[%clk 0:02:09.4]} 18. Nxb7 {[%clk 0:01:31.6]}
18... Rab8 {[%clk 0:02:06.7]} 19. Nc5 {[%clk 0:01:07.2]} 19... Rxb2 {[%clk
0:02:05.2]} 20. Re1 {[%clk 0:00:40.2]} 20... Qh5 {[%clk 0:02:03.4]} 21. Nd3
{[%clk 0:00:39.7]} 21... Rb5 {[%clk 0:01:53.6]} 22. Nd4 {[%clk 0:00:40]} 22...
Bxe2 {[%clk 0:01:51.9]} 23. Rxe2 {[%clk 0:00:38]} 23... Rxe2 {[%clk 0:01:32.1]}
24. Qxe2 {[%clk 0:00:38.5]} 24... Qxe2 {[%clk 0:01:33.6]} 25. Nxe2 {[%clk
0:00:39.1]} 25... Rd5 {[%clk 0:01:35.5]} 26. Ndxf4 {[%clk 0:00:30.2]} 26... Rd2
{[%clk 0:01:37.4]} 27. Be3 {[%clk 0:00:23.9]} 27... Rb2 {[%clk 0:01:35.1]} 28.
a4 {[%clk 0:00:20.5]} 28... Nge5 {[%clk 0:01:35.8]} 29. h3 {[%clk 0:00:20.6]}
29... g5 {[%clk 0:01:35.8]} 30. Bc1 {[%clk 0:00:14.6]} 30... Rc2 {[%clk
0:01:28]} 31. Nd4 {[%clk 0:00:14.3]} 31... Rxc3 {[%clk 0:01:16.5]} 32. Nxc6
{[%clk 0:00:13.7]} 32... Nxc6 {[%clk 0:01:16.1]} 33. Ne2 {[%clk 0:00:11.3]}
33... Rc2 {[%clk 0:01:18]} 34. Ng3 {[%clk 0:00:12.1]} 34... Nd4 {[%clk
0:01:19.2]} 35. Bxg5 {[%clk 0:00:11.8]} 35... Nb3 {[%clk 0:01:21.1]} 36. Rd1
{[%clk 0:00:11.1]} 36... Rc3 {[%clk 0:01:23]} 37. Kh2 {[%clk 0:00:12]} 37... Kg7
{[%clk 0:01:23.4]} 38. Rd7 {[%clk 0:00:12]} 38... Kg6 {[%clk 0:01:25.3]} 39. Bf4
{[%clk 0:00:12.4]} 39... Nc5 {[%clk 0:01:25.1]} 40. Rd5 {[%clk 0:00:12.5]} 40...
Nxa4 {[%clk 0:01:25.6]} 41. Rg5+ {[%clk 0:00:13.4]} 41... Kf6 {[%clk 0:01:26.9]}
42. Ne4+ {[%clk 0:00:14.5]} 42... Ke6 {[%clk 0:01:27.4]} 43. Nxc3 {[%clk
0:00:15.2]} 43... Nxc3 {[%clk 0:01:29.3]} 44. Rc5 {[%clk 0:00:16.1]} 44... Nd5
{[%clk 0:01:31.2]} 45. Bxc7 {[%clk 0:00:15.6]} 45... Ne7 {[%clk 0:01:31.6]} 46.
Bg3 {[%clk 0:00:16.2]} 46... a6 {[%clk 0:01:33.5]} 47. Ra5 {[%clk 0:00:16.4]}
47... f5 {[%clk 0:01:34.9]} 48. Rxa6+ {[%clk 0:00:17.6]} 48... Kd5 {[%clk
0:01:36.8]} 49. Ra7 {[%clk 0:00:18.1]} 49... Ke4 {[%clk 0:01:38.7]} 50. Rxe7+
{[%clk 0:00:18.3]} 1-0

[Event "*** Titled Tuesday Blitz"]
[Site "Chess.com"]
[Date "2019.04.02"]
[Round "4"]
[White "51616516516"]
[Black "kasparicy"]
[Result "1/2-1/2"]
[WhiteElo "2219"]
[BlackElo "2330"]
[TimeControl "180+2"]
[EndTime "14:49:13 PDT"]
[Termination "Game drawn by agreement"]

1. c4 {[%clk 0:02:57.1]} 1... e5 {[%clk 0:02:55.2]} 2. g3 {[%clk 0:02:57.6]}
2... Nc6 {[%clk 0:02:56.4]} 3. Bg2 {[%clk 0:02:58.8]} 3... d6 {[%clk 0:02:54.3]}
4. Nc3 {[%clk 0:02:59.9]} 4... f5 {[%clk 0:02:55.2]} 5. e3 {[%clk 0:02:58.8]}
5... Nf6 {[%clk 0:02:55.3]} 6. d4 {[%clk 0:02:59.5]} 6... e4 {[%clk 0:02:55.1]}
7. b4 {[%clk 0:02:56.1]} 7... Be7 {[%clk 0:02:46.6]} 8. b5 {[%clk 0:02:53.6]}
8... Nb8 {[%clk 0:02:47.4]} 9. Bb2 {[%clk 0:02:50.3]} 9... O-O {[%clk
0:02:42.7]} 10. Nge2 {[%clk 0:02:51.3]} 10... c6 {[%clk 0:02:41.8]} 11. O-O
{[%clk 0:02:42.4]} 11... Nbd7 {[%clk 0:02:31]} 12. Nf4 {[%clk 0:02:39.6]} 12...
Nb6 {[%clk 0:02:18.9]} 13. Qb3 {[%clk 0:02:31.6]} 13... Kh8 {[%clk 0:02:11.4]}
14. a4 {[%clk 0:02:26.5]} 14... d5 {[%clk 0:02:06.4]} 15. cxd5 {[%clk
0:02:10.7]} 15... Nbxd5 {[%clk 0:01:27]} 16. Ncxd5 {[%clk 0:01:43]} 16... Nxd5
{[%clk 0:01:20.5]} 17. Nxd5 {[%clk 0:01:39.7]} 17... cxd5 {[%clk 0:01:20.2]} 18.
Ba3 {[%clk 0:01:30.6]} 18... Bxa3 {[%clk 0:01:11.3]} 19. Qxa3 {[%clk 0:01:31.1]}
19... Be6 {[%clk 0:01:12.8]} 20. Rac1 {[%clk 0:01:29.6]} 20... Qd7 {[%clk
0:00:57.4]} 21. Rc3 {[%clk 0:01:19.3]} 21... Rac8 {[%clk 0:00:58.3]} 22. Rfc1
{[%clk 0:01:19.6]} 22... h6 {[%clk 0:00:59.4]} 23. h4 {[%clk 0:01:14.2]} 23...
Rxc3 {[%clk 0:00:58.7]} 24. Qxc3 {[%clk 0:01:14.2]} 24... Rc8 {[%clk 0:01:00.6]}
25. Qxc8+ {[%clk 0:01:12.5]} 25... Qxc8 {[%clk 0:01:02.5]} 26. Rxc8+ {[%clk
0:01:13]} 26... Bxc8 {[%clk 0:01:04.4]} 27. f3 {[%clk 0:00:52.7]} 27... g5
{[%clk 0:00:59.3]} 28. hxg5 {[%clk 0:00:51.1]} 28... hxg5 {[%clk 0:01:01.2]} 29.
fxe4 {[%clk 0:00:45.2]} 29... fxe4 {[%clk 0:01:03.1]} 30. Kf2 {[%clk 0:00:40.8]}
30... Kg7 {[%clk 0:01:03.1]} 31. Ke2 {[%clk 0:00:40.7]} 31... b6 {[%clk
0:01:04.4]} 32. Kd2 {[%clk 0:00:39.3]} 32... Kf6 {[%clk 0:01:04.6]} 33. Bf1
{[%clk 0:00:40.2]} 33... Bd7 {[%clk 0:01:01.4]} 34. Be2 {[%clk 0:00:40.2]} 34...
Ke7 {[%clk 0:01:01.3]} 35. Kc3 {[%clk 0:00:41.1]} 35... Kd6 {[%clk 0:01:02.4]}
36. Kb4 {[%clk 0:00:42.3]} 36... Be6 {[%clk 0:01:01.5]} 37. a5 {[%clk
0:00:41.6]} 37... g4 {[%clk 0:01:01.2]} 38. a6 {[%clk 0:00:25.5]} 38... Bd7
{[%clk 0:01:00.2]} 39. Kc3 {[%clk 0:00:25.4]} 39... Be6 {[%clk 0:00:59.7]} 40.
Kd2 {[%clk 0:00:25.8]} 40... Bd7 {[%clk 0:01:00.5]} 41. Ke1 {[%clk 0:00:16.2]}
1/2-1/2

[Event "*** Titled Tuesday Blitz"]
[Site "Chess.com"]
[Date "2019.04.02"]
[Round "4"]
[White "Rap_woyska"]
[Black "Supernotar"]
[Result "1-0"]
[WhiteElo "2546"]
[BlackElo "2566"]
[TimeControl "180+2"]
[EndTime "14:49:15 PDT"]
[Termination "Rap_woyska won by resignation"]

1. c4 {[%clk 0:02:39.9]} 1... c5 {[%clk 0:03:00.3]} 2. Nf3 {[%clk 0:02:40.7]}
2... Nc6 {[%clk 0:03:01.6]} 3. Nc3 {[%clk 0:02:41.3]} 3... g6 {[%clk 0:03:01.7]}
4. e3 {[%clk 0:02:42.7]} 4... Nf6 {[%clk 0:03:01.9]} 5. d4 {[%clk 0:02:44.2]}
5... cxd4 {[%clk 0:03:03.1]} 6. exd4 {[%clk 0:02:46.1]} 6... d5 {[%clk
0:03:03.7]} 7. cxd5 {[%clk 0:02:47.2]} 7... Nxd5 {[%clk 0:03:04.4]} 8. Qb3
{[%clk 0:02:49.1]} 8... Nxc3 {[%clk 0:03:03.9]} 9. Bc4 {[%clk 0:02:50.6]} 9...
e6 {[%clk 0:03:04.2]} 10. bxc3 {[%clk 0:02:51.6]} 10... Bg7 {[%clk 0:02:52.1]}
11. Ba3 {[%clk 0:02:52.3]} 11... Ne7 {[%clk 0:02:47.1]} 12. Bb5+ {[%clk
0:02:48.9]} 12... Bd7 {[%clk 0:02:47.6]} 13. Ne5 {[%clk 0:02:31]} 13... Bxe5
{[%clk 0:02:29.9]} 14. dxe5 {[%clk 0:02:31]} 14... Bxb5 {[%clk 0:02:25.9]} 15.
Qxb5+ {[%clk 0:02:30.1]} 15... Qd7 {[%clk 0:02:27.4]} 16. Qb4 {[%clk 0:01:29.8]}
16... Nd5 {[%clk 0:02:17]} 17. Qh4 {[%clk 0:01:30.7]} 17... Qb5 {[%clk
0:01:08.5]} 18. O-O-O {[%clk 0:01:26]} 18... Rc8 {[%clk 0:00:53.4]} 19. Rxd5
{[%clk 0:01:12.7]} 19... Rxc3+ {[%clk 0:00:53.9]} 20. Kd2 {[%clk 0:01:13.8]}
20... Qxd5+ {[%clk 0:00:46.5]} 21. Kxc3 {[%clk 0:01:12.8]} 21... Qxe5+ {[%clk
0:00:19.8]} 22. Qd4 {[%clk 0:00:58.1]} 22... Qa5+ {[%clk 0:00:20.2]} 23. Bb4
{[%clk 0:00:58.8]} 23... Qc7+ {[%clk 0:00:18.6]} 24. Kb2 {[%clk 0:01:00.4]}
24... e5 {[%clk 0:00:19.5]} 25. Re1 {[%clk 0:00:57.4]} 25... f6 {[%clk
0:00:19.5]} 26. f4 {[%clk 0:00:57.7]} 26... Kf7 {[%clk 0:00:12.5]} 27. fxe5
{[%clk 0:00:58.8]} 27... Rd8 {[%clk 0:00:12.2]} 28. Qc3 {[%clk 0:00:56.3]} 28...
Qb6 {[%clk 0:00:07.8]} 29. e6+ {[%clk 0:00:56.7]} 29... Kg7 {[%clk 0:00:08.3]}
30. e7 {[%clk 0:00:54.4]} 30... Rd4 {[%clk 0:00:09.3]} 31. e8=Q {[%clk
0:00:49.2]} 31... Rxb4+ {[%clk 0:00:09.9]} 32. Ka1 {[%clk 0:00:50.4]} 32... a5
{[%clk 0:00:07.1]} 33. Re7+ {[%clk 0:00:45.4]} 33... Kh6 {[%clk 0:00:07.7]} 34.
Qe3+ {[%clk 0:00:42.4]} 34... Qxe3 {[%clk 0:00:07.6]} 35. Rxe3 {[%clk
0:00:44.3]} 35... Rg4 {[%clk 0:00:06.5]} 36. Qf8+ {[%clk 0:00:43]} 1-0

[Event "*** Titled Tuesday Blitz"]
[Site "Chess.com"]
[Date "2019.04.02"]
[Round "4"]
[White "NM2019"]
[Black "Saitama_Hero"]
[Result "1-0"]
[WhiteElo "2172"]
[BlackElo "2218"]
[TimeControl "180+2"]
[EndTime "14:49:21 PDT"]
[Termination "NM2019 won on time"]

1. e4 {[%clk 0:03:01.7]} 1... c5 {[%clk 0:02:44.9]} 2. Nf3 {[%clk 0:03:02.8]}
2... g6 {[%clk 0:02:46.5]} 3. g3 {[%clk 0:03:00.9]} 3... Bg7 {[%clk 0:02:45.7]}
4. Bg2 {[%clk 0:03:02.2]} 4... Nc6 {[%clk 0:02:46.3]} 5. O-O {[%clk 0:03:03.8]}
5... d6 {[%clk 0:02:47.5]} 6. c3 {[%clk 0:03:04.3]} 6... Bg4 {[%clk 0:02:38.9]}
7. h3 {[%clk 0:03:04.9]} 7... Bd7 {[%clk 0:02:38.3]} 8. Re1 {[%clk 0:03:05.6]}
8... Qc8 {[%clk 0:02:35.8]} 9. Kh2 {[%clk 0:03:06.6]} 9... h5 {[%clk 0:02:31.5]}
10. d4 {[%clk 0:03:04.4]} 10... cxd4 {[%clk 0:02:33.4]} 11. cxd4 {[%clk
0:03:04.2]} 11... Nh6 {[%clk 0:02:35]} 12. Be3 {[%clk 0:02:50.6]} 12... e5
{[%clk 0:01:40.4]} 13. d5 {[%clk 0:02:47.6]} 13... Ne7 {[%clk 0:01:40.6]} 14.
Nbd2 {[%clk 0:02:46.5]} 14... f6 {[%clk 0:01:31.1]} 15. Rc1 {[%clk 0:02:47]}
15... Qd8 {[%clk 0:01:31.7]} 16. Nc4 {[%clk 0:02:48.1]} 16... Nc8 {[%clk
0:01:26.3]} 17. Qb3 {[%clk 0:02:44.9]} 17... b6 {[%clk 0:01:22.2]} 18. Qa3
{[%clk 0:02:43.5]} 18... Nf7 {[%clk 0:01:18.5]} 19. Nh4 {[%clk 0:02:34.4]} 19...
g5 {[%clk 0:01:14.7]} 20. Nf5 {[%clk 0:02:29]} 20... Bf8 {[%clk 0:01:07.9]} 21.
f4 {[%clk 0:02:26.4]} 21... gxf4 {[%clk 0:01:03.8]} 22. gxf4 {[%clk 0:02:27.5]}
22... b5 {[%clk 0:00:42.3]} 23. Na5 {[%clk 0:02:22.3]} 23... exf4 {[%clk
0:00:42.1]} 24. Bxf4 {[%clk 0:02:21.3]} 24... Ne5 {[%clk 0:00:43.6]} 25. Nb7
{[%clk 0:02:08.5]} 25... Qb6 {[%clk 0:00:42.6]} 26. Rxc8+ {[%clk 0:01:59.1]}
26... Rxc8 {[%clk 0:00:35.2]} 27. Nbxd6+ {[%clk 0:02:00.4]} 27... Bxd6 {[%clk
0:00:34.1]} 28. Nxd6+ {[%clk 0:02:00.5]} 28... Kd8 {[%clk 0:00:32.6]} 29. Nxc8
{[%clk 0:01:24.9]} 29... Kxc8 {[%clk 0:00:34.5]} 30. Rc1+ {[%clk 0:01:16]} 30...
Kb7 {[%clk 0:00:34]} 31. Bxe5 {[%clk 0:01:14.6]} 31... fxe5 {[%clk 0:00:35]} 32.
Qe7 {[%clk 0:01:14.1]} 32... Rd8 {[%clk 0:00:33.5]} 33. Qxe5 {[%clk 0:01:13.1]}
33... Re8 {[%clk 0:00:33.4]} 34. Qg7 {[%clk 0:01:09.9]} 34... Qd6+ {[%clk
0:00:31.4]} 35. Qg3 {[%clk 0:01:09.1]} 35... Qb6 {[%clk 0:00:27.3]} 36. e5
{[%clk 0:01:06.8]} 36... Bf5 {[%clk 0:00:21.6]} 37. d6+ {[%clk 0:01:03]} 37...
Ka6 {[%clk 0:00:21.6]} 38. Rc6 {[%clk 0:01:01.8]} 1-0

[Event "*** Titled Tuesday Blitz"]
[Site "Chess.com"]
[Date "2019.04.02"]
[Round "4"]
[White "iturrizaga"]
[Black "grzechu96"]
[Result "1-0"]
[WhiteElo "2887"]
[BlackElo "2566"]
[TimeControl "180+2"]
[EndTime "14:49:22 PDT"]
[Termination "iturrizaga won by resignation"]

1. c4 {[%clk 0:03:01.9]} 1... g6 {[%clk 0:03:01]} 2. g3 {[%clk 0:03:02.4]} 2...
Bg7 {[%clk 0:03:00.7]} 3. Bg2 {[%clk 0:03:04]} 3... c5 {[%clk 0:03:02.1]} 4. Nc3
{[%clk 0:03:04.9]} 4... Nc6 {[%clk 0:03:03.1]} 5. Nf3 {[%clk 0:03:06.5]} 5... e6
{[%clk 0:03:04.1]} 6. d4 {[%clk 0:03:07.5]} 6... cxd4 {[%clk 0:03:06]} 7. Nb5
{[%clk 0:03:08.9]} 7... d5 {[%clk 0:03:07.1]} 8. cxd5 {[%clk 0:03:09.5]} 8...
exd5 {[%clk 0:03:08.5]} 9. O-O {[%clk 0:02:56.7]} 9... Nf6 {[%clk 0:03:08.8]}
10. Nfxd4 {[%clk 0:02:57.1]} 10... O-O {[%clk 0:03:05.2]} 11. Bf4 {[%clk
0:02:43.2]} 11... a6 {[%clk 0:02:40.6]} 12. Nxc6 {[%clk 0:02:37.3]} 12... bxc6
{[%clk 0:02:42.5]} 13. Nc3 {[%clk 0:02:38.7]} 13... Nh5 {[%clk 0:02:30.6]} 14.
Bd2 {[%clk 0:02:32.9]} 14... Rb8 {[%clk 0:02:30.5]} 15. b3 {[%clk 0:02:30.1]}
15... Re8 {[%clk 0:02:31.2]} 16. Rc1 {[%clk 0:02:30.1]} 16... a5 {[%clk
0:02:04.6]} 17. Re1 {[%clk 0:02:28.1]} 17... Ba6 {[%clk 0:02:05.2]} 18. Na4
{[%clk 0:02:28.5]} 18... Bb7 {[%clk 0:00:38.8]} 19. Nc5 {[%clk 0:02:26.4]} 19...
Bc8 {[%clk 0:00:38.4]} 20. e4 {[%clk 0:02:25.2]} 20... Nf6 {[%clk 0:00:37.4]}
21. Bf4 {[%clk 0:02:16.1]} 21... Rb4 {[%clk 0:00:29.5]} 22. exd5 {[%clk
0:02:10.1]} 22... Nxd5 {[%clk 0:00:26.8]} 23. Rxe8+ {[%clk 0:01:56.2]} 23...
Qxe8 {[%clk 0:00:28.7]} 24. Bd2 {[%clk 0:01:56.9]} 24... Rd4 {[%clk 0:00:27.4]}
25. Qe1 {[%clk 0:01:57.1]} 25... Qxe1+ {[%clk 0:00:24.6]} 26. Bxe1 {[%clk
0:01:59]} 26... Bf8 {[%clk 0:00:21.6]} 27. Bf3 {[%clk 0:01:17.6]} 27... Bh6
{[%clk 0:00:12]} 28. Rd1 {[%clk 0:01:02.7]} 28... Rxd1 {[%clk 0:00:12.6]} 29.
Bxd1 {[%clk 0:01:04.6]} 29... Bf8 {[%clk 0:00:13.7]} 30. Nd3 {[%clk 0:00:50.5]}
30... Nb4 {[%clk 0:00:14.9]} 31. Ne5 {[%clk 0:00:43.4]} 31... Nxa2 {[%clk
0:00:05.1]} 32. Nxc6 {[%clk 0:00:43.6]} 32... Bb4 {[%clk 0:00:05]} 33. Bxb4
{[%clk 0:00:44.2]} 33... axb4 {[%clk 0:00:05.5]} 34. Ne7+ {[%clk 0:00:45.7]}
34... Kf8 {[%clk 0:00:04.7]} 35. Nxc8 {[%clk 0:00:47.6]} 35... Nc3 {[%clk
0:00:06.1]} 36. Bf3 {[%clk 0:00:47.2]} 36... Ke8 {[%clk 0:00:07]} 37. Nb6 {[%clk
0:00:45.6]} 1-0